[Event "The Kvibergspelen 2023"]
[Site "Kviberg Park Hotel & Conference, Krutvagen 2, Gothenburg, Sweden"]
[Date "2023.09.15"]
[Round "1.1"]
[White "Olsson, Thomas"]
[Black "Hansen, Sune Berg"]
[Result "0-1"]
[TimeControl "15 minutes + 5 seconds per move from move one (Round 1 - 4) / 90 minutes + 30 seconds per move from move one (Round 5 - 8)"]
[BlackTitle "GM"]
[WhiteFideId "1702696"]
[BlackFideId "1400266"]
[WhiteElo "1873"]
[BlackElo "2512"]

1. e4 {[%clk 00:15:04]} {[%emt 00:00:05]} e5 {[%clk 00:15:05]} {[%emt
00:00:06]} 2. Nf3 {[%clk 00:15:04]} {[%emt 00:00:05]} Nc6 {[%clk 00:15:08]}
{[%emt 00:00:02]} 3. Bb5 {[%clk 00:15:01]} {[%emt 00:00:08]} a6 {[%clk
00:15:07]} {[%emt 00:00:06]} 4. Ba4 {[%clk 00:15:02]} {[%emt 00:00:04]} d6
{[%clk 00:15:08]} {[%emt 00:00:04]} 5. Bxc6+ {[%clk 00:14:00]} {[%emt
00:01:07]} bxc6 {[%clk 00:15:08]} {[%emt 00:00:04]} 6. d4 {[%clk 00:14:02]}
{[%emt 00:00:03]} f6 {[%clk 00:14:51]} {[%emt 00:00:23]} 7. Nc3 {[%clk
00:13:56]} {[%emt 00:00:11]} Ne7 {[%clk 00:14:48]} {[%emt 00:00:08]} 8. Be3
{[%clk 00:13:32]} {[%emt 00:00:29]} Ng6 {[%clk 00:14:48]} {[%emt 00:00:04]} 9.
Qd2 {[%clk 00:13:27]} {[%emt 00:00:10]} Be7 {[%clk 00:13:57]} {[%emt 00:00:56]}
10. h4 {[%clk 00:11:54]} {[%emt 00:01:39]} h5 {[%clk 00:13:46]} {[%emt
00:00:15]} 11. dxe5 {[%clk 00:11:02]} {[%emt 00:00:58]} Nxe5 {[%clk 00:12:07]}
{[%emt 00:01:44]} 12. Nxe5 {[%clk 00:10:49]} {[%emt 00:00:17]} fxe5 {[%clk
00:12:08]} {[%emt 00:00:05]} 13. Bg5 {[%clk 00:08:37]} {[%emt 00:02:17]} Bxg5
{[%clk 00:11:26]} {[%emt 00:00:46]} 14. hxg5 {[%clk 00:08:38]} {[%emt
00:00:04]} g6 {[%clk 00:10:07]} {[%emt 00:01:25]} 15. O-O-O {[%clk 00:08:10]}
{[%emt 00:00:32]} Rf8 {[%clk 00:08:54]} {[%emt 00:01:18]} 16. f3 {[%clk
00:08:02]} {[%emt 00:00:13]} Qe7 {[%clk 00:08:58]} {[%emt 00:00:02]} 17. Rdf1
{[%clk 00:07:23]} {[%emt 00:00:43]} Be6 {[%clk 00:07:58]} {[%emt 00:01:05]} 18.
g3 {[%clk 00:06:45]} {[%emt 00:00:43]} O-O-O {[%clk 00:06:24]} {[%emt
00:01:39]} 19. f4 {[%clk 00:05:32]} {[%emt 00:01:18]} d5 {[%clk 00:02:58]}
{[%emt 00:03:32]} 20. exd5 {[%clk 00:04:56]} {[%emt 00:00:40]} Bxd5 {[%clk
00:02:50]} {[%emt 00:00:14]} 21. Nxd5 {[%clk 00:04:40]} {[%emt 00:00:22]} Rxd5
{[%clk 00:02:53]} {[%emt 00:00:01]} 22. Qe2 {[%clk 00:03:46]} {[%emt 00:00:59]}
Kb7 {[%clk 00:02:57]} {[%emt 00:00:01]} 23. Kb1 {[%clk 00:03:10]} {[%emt
00:00:40]} Qd6 {[%clk 00:02:55]} {[%emt 00:00:09]} 24. Rf3 {[%clk 00:02:15]}
{[%emt 00:00:58]} exf4 {[%clk 00:02:52]} {[%emt 00:00:09]} 25. gxf4 {[%clk
00:02:12]} {[%emt 00:00:07]} Rxf4 {[%clk 00:02:46]} {[%emt 00:00:12]} 26. Rb3+
{[%clk 00:01:47]} {[%emt 00:00:30]} Rb5 {[%clk 00:02:40]} {[%emt 00:00:12]} 27.
Rd1 {[%clk 00:01:25]} {[%emt 00:00:26]} Rd4 {[%clk 00:02:06]} {[%emt 00:00:40]}
28. Re1 {[%clk 00:00:58]} {[%emt 00:00:31]} Rd2 {[%clk 00:01:53]} {[%emt
00:00:18]} 29. Rxb5+ {[%clk 00:00:48]} {[%emt 00:00:14]} axb5 {[%clk 00:01:52]}
{[%emt 00:00:07]} 30. Qf3 {[%clk 00:00:25]} {[%emt 00:00:27]} Qc5 {[%clk
00:01:55]} {[%emt 00:00:03]} 31. Qb3 {[%clk 00:00:19]} {[%emt 00:00:12]} Qxg5
{[%clk 00:01:37]} {[%emt 00:00:22]} 32. a4 {[%clk 00:00:18]} {[%emt 00:00:06]}
Qd5 {[%clk 00:01:39]} {[%emt 00:00:02]} 33. Qc3 {[%clk 00:00:10]} {[%emt
00:00:13]} Qd4 {[%clk 00:01:26]} {[%emt 00:00:19]} 34. Qf3 {[%clk 00:00:06]}
{[%emt 00:00:08]} Qxa4 {[%clk 00:01:21]} {[%emt 00:00:11]} 0-1

[Event "The Kvibergspelen 2023"]
[Site "Kviberg Park Hotel & Conference, Krutvagen 2, Gothenburg, Sweden"]
[Date "2023.09.15"]
[Round "1.2"]
[White "Holm, Kristian Stuvik"]
[Black "Westlund, Tim"]
[Result "1-0"]
[TimeControl "15 minutes + 5 seconds per move from move one (Round 1 - 4) / 90 minutes + 30 seconds per move from move one (Round 5 - 8)"]
[WhiteTitle "IM"]
[WhiteFideId "1508083"]
[BlackFideId "1754718"]
[WhiteElo "2488"]
[BlackElo "1871"]

1. d4 {[%clk 00:15:07]} {[%emt 00:00:03]} Nf6 {[%clk 00:15:09]} {[%emt
00:00:02]} 2. c4 {[%clk 00:15:10]} {[%emt 00:00:02]} e6 {[%clk 00:15:06]}
{[%emt 00:00:05]} 3. Nf3 {[%clk 00:15:10]} {[%emt 00:00:07]} d5 {[%clk
00:15:03]} {[%emt 00:00:08]} 4. Nc3 {[%clk 00:15:14]} {[%emt 00:00:01]} Nbd7
{[%clk 00:14:56]} {[%emt 00:00:12]} 5. Bf4 {[%clk 00:14:53]} {[%emt 00:00:26]}
c6 {[%clk 00:14:39]} {[%emt 00:00:22]} 6. e3 {[%clk 00:14:51]} {[%emt
00:00:07]} Be7 {[%clk 00:14:23]} {[%emt 00:00:20]} 7. h3 {[%clk 00:14:47]}
{[%emt 00:00:10]} O-O {[%clk 00:13:50]} {[%emt 00:00:38]} 8. Rc1 {[%clk
00:14:43]} {[%emt 00:00:09]} Re8 {[%clk 00:12:49]} {[%emt 00:01:05]} 9. Bd3
{[%clk 00:14:31]} {[%emt 00:00:18]} dxc4 {[%clk 00:12:43]} {[%emt 00:00:11]} 10.
Bxc4 {[%clk 00:14:35]} {[%emt 00:00:01]} b5 {[%clk 00:12:42]} {[%emt 00:00:06]}
11. Bd3 {[%clk 00:13:46]} {[%emt 00:00:54]} a6 {[%clk 00:12:22]} {[%emt
00:00:26]} 12. a4 {[%clk 00:12:08]} {[%emt 00:01:42]} Bb7 {[%clk 00:11:45]}
{[%emt 00:00:42]} 13. O-O {[%clk 00:12:07]} {[%emt 00:00:06]} Qb6 {[%clk
00:09:07]} {[%emt 00:02:42]} 14. Ne5 {[%clk 00:08:01]} {[%emt 00:04:12]} Rad8
{[%clk 00:08:03]} {[%emt 00:01:08]} 15. Qe2 {[%clk 00:07:50]} {[%emt 00:00:17]}
Nxe5 {[%clk 00:07:37]} {[%emt 00:00:31]} 16. Bxe5 {[%clk 00:07:43]} {[%emt
00:00:11]} Nd7 {[%clk 00:07:08]} {[%emt 00:00:34]} 17. Bg3 {[%clk 00:07:19]}
{[%emt 00:00:30]} Bf8 {[%clk 00:06:14]} {[%emt 00:00:59]} 18. Rfd1 {[%clk
00:04:33]} {[%emt 00:02:51]} g6 {[%clk 00:05:21]} {[%emt 00:00:58]} 19. Ne4
{[%clk 00:04:22]} {[%emt 00:00:16]} Bg7 {[%clk 00:04:52]} {[%emt 00:00:34]} 20.
Bh4 {[%clk 00:03:58]} {[%emt 00:00:29]} Rb8 {[%clk 00:04:31]} {[%emt 00:00:26]}
21. Nd6 {[%clk 00:04:02]} {[%emt 00:00:02]} Rf8 {[%clk 00:04:30]} {[%emt
00:00:04]} 22. Be7 {[%clk 00:04:02]} {[%emt 00:00:06]} e5 {[%clk 00:04:22]}
{[%emt 00:00:14]} 23. Bxf8 {[%clk 00:03:35]} {[%emt 00:00:31]} Rxf8 {[%clk
00:04:24]} {[%emt 00:00:02]} 24. Nxb7 {[%clk 00:03:33]} {[%emt 00:00:08]} Qxb7
{[%clk 00:04:26]} {[%emt 00:00:03]} 25. Be4 {[%clk 00:03:34]} {[%emt 00:00:04]}
Rc8 {[%clk 00:04:18]} {[%emt 00:00:12]} 26. axb5 {[%clk 00:03:33]} {[%emt
00:00:07]} axb5 {[%clk 00:04:20]} {[%emt 00:00:03]} 27. Qf3 {[%clk 00:03:26]}
{[%emt 00:00:12]} exd4 {[%clk 00:04:10]} {[%emt 00:00:15]} 28. Bxc6 {[%clk
00:03:25]} {[%emt 00:00:07]} Qa7 {[%clk 00:04:03]} {[%emt 00:00:10]} 29. Bxd7
{[%clk 00:02:52]} {[%emt 00:00:38]} Qxd7 {[%clk 00:04:04]} {[%emt 00:00:05]} 30.
Rxc8+ {[%clk 00:02:49]} {[%emt 00:00:09]} Qxc8 {[%clk 00:04:05]} {[%emt
00:00:04]} 31. exd4 {[%clk 00:02:50]} {[%emt 00:00:03]} h5 {[%clk 00:04:03]}
{[%emt 00:00:07]} 32. b3 {[%clk 00:02:46]} {[%emt 00:00:09]} Qc2 {[%clk
00:03:50]} {[%emt 00:00:19]} 33. d5 {[%clk 00:02:45]} {[%emt 00:00:06]} Qc7
{[%clk 00:03:47]} {[%emt 00:00:07]} 34. d6 {[%clk 00:02:48]} {[%emt 00:00:02]}
Qd7 {[%clk 00:03:46]} {[%emt 00:00:07]} 35. Qd5 {[%clk 00:02:52]} {[%emt
00:00:02]} Bf8 {[%clk 00:03:43]} {[%emt 00:00:07]} 36. Rd3 {[%clk 00:02:43]}
{[%emt 00:00:14]} b4 {[%clk 00:03:40]} {[%emt 00:00:08]} 37. Qc4 {[%clk
00:02:37]} {[%emt 00:00:12]} Bxd6 {[%clk 00:03:20]} {[%emt 00:00:25]} 38. Qd5
{[%clk 00:02:38]} {[%emt 00:00:04]} Bh2+ {[%clk 00:03:12]} {[%emt 00:00:11]} 39.
Kxh2 {[%clk 00:02:41]} {[%emt 00:00:03]} Qc7+ {[%clk 00:03:14]} {[%emt
00:00:02]} 40. g3 {[%clk 00:02:44]} {[%emt 00:00:03]} Kh7 {[%clk 00:03:16]}
{[%emt 00:00:03]} 41. Rf3 {[%clk 00:02:43]} {[%emt 00:00:06]} Qc8 {[%clk
00:03:13]} {[%emt 00:00:10]} 42. Rxf7+ {[%clk 00:02:41]} {[%emt 00:00:06]} Kh8
{[%clk 00:03:15]} {[%emt 00:00:01]} 43. Qd4+ {[%clk 00:02:42]} {[%emt
00:00:04]} 1-0

[Event "The Kvibergspelen 2023"]
[Site "Kviberg Park Hotel & Conference, Krutvagen 2, Gothenburg, Sweden"]
[Date "2023.09.15"]
[Round "1.3"]
[White "Paludan, Noah"]
[Black "Larkin, Vladyslav"]
[Result "0-1"]
[TimeControl "15 minutes + 5 seconds per move from move one (Round 1 - 4) / 90 minutes + 30 seconds per move from move one (Round 5 - 8)"]
[BlackTitle "IM"]
[WhiteFideId "1474987"]
[BlackFideId "14152894"]
[WhiteElo "1867"]
[BlackElo "2464"]

1. e4 {[%clk 00:15:02]} {[%emt 00:00:07]} c5 {[%clk 00:15:09]} {[%emt
00:00:02]} 2. Nc3 {[%clk 00:15:02]} {[%emt 00:00:04]} a6 {[%clk 00:15:12]}
{[%emt 00:00:03]} 3. Nge2 {[%clk 00:14:50]} {[%emt 00:00:15]} b5 {[%clk
00:15:09]} {[%emt 00:00:09]} 4. g3 {[%clk 00:14:43]} {[%emt 00:00:12]} Bb7
{[%clk 00:15:10]} {[%emt 00:00:05]} 5. Bg2 {[%clk 00:14:44]} {[%emt 00:00:03]}
h5 {[%clk 00:14:56]} {[%emt 00:00:19]} 6. h4 {[%clk 00:13:33]} {[%emt
00:01:16]} e6 {[%clk 00:14:53]} {[%emt 00:00:08]} 7. O-O {[%clk 00:12:59]}
{[%emt 00:00:38]} b4 {[%clk 00:14:56]} {[%emt 00:00:03]} 8. Na4 {[%clk
00:12:48]} {[%emt 00:00:16]} Nf6 {[%clk 00:14:58]} {[%emt 00:00:03]} 9. d4
{[%clk 00:10:47]} {[%emt 00:02:07]} cxd4 {[%clk 00:14:45]} {[%emt 00:00:17]} 10.
Nxd4 {[%clk 00:10:47]} {[%emt 00:00:04]} Bxe4 {[%clk 00:14:43]} {[%emt
00:00:08]} 11. Bxe4 {[%clk 00:10:41]} {[%emt 00:00:10]} Nxe4 {[%clk 00:14:47]}
{[%emt 00:00:02]} 12. Re1 {[%clk 00:10:29]} {[%emt 00:00:17]} d5 {[%clk
00:14:46]} {[%emt 00:00:07]} 13. c4 {[%clk 00:09:39]} {[%emt 00:00:54]} bxc3
{[%clk 00:14:06]} {[%emt 00:00:46]} 14. Nxc3 {[%clk 00:09:17]} {[%emt
00:00:25]} Nxc3 {[%clk 00:13:59]} {[%emt 00:00:14]} 15. bxc3 {[%clk 00:08:50]}
{[%emt 00:00:29]} Qd7 {[%clk 00:14:00]} {[%emt 00:00:06]} 16. Qf3 {[%clk
00:06:29]} {[%emt 00:02:26]} Nc6 {[%clk 00:13:49]} {[%emt 00:00:17]} 17. Rb1
{[%clk 00:05:03]} {[%emt 00:01:31]} Be7 {[%clk 00:12:09]} {[%emt 00:01:44]} 18.
Bf4 {[%clk 00:04:32]} {[%emt 00:00:35]} Bf6 {[%clk 00:11:33]} {[%emt 00:00:42]}
19. Nb3 {[%clk 00:04:01]} {[%emt 00:00:36]} O-O {[%clk 00:08:58]} {[%emt
00:02:39]} 20. Qxh5 {[%clk 00:03:13]} {[%emt 00:00:54]} Bxc3 {[%clk 00:08:40]}
{[%emt 00:00:23]} 21. Rec1 {[%clk 00:03:09]} {[%emt 00:00:08]} Bb4 {[%clk
00:07:46]} {[%emt 00:01:01]} 22. Qg4 {[%clk 00:02:37]} {[%emt 00:00:36]} Rac8
{[%clk 00:07:35]} {[%emt 00:00:17]} 23. Bh6 {[%clk 00:02:28]} {[%emt 00:00:13]}
f5 {[%clk 00:07:37]} {[%emt 00:00:04]} 24. Qf4 {[%clk 00:01:03]} {[%emt
00:01:30]} Bd6 {[%clk 00:07:34]} {[%emt 00:00:07]} 25. Qa4 {[%clk 00:00:41]}
{[%emt 00:00:28]} gxh6 {[%clk 00:07:07]} {[%emt 00:00:31]} 26. Nd4 {[%clk
00:00:26]} {[%emt 00:00:21]} Ne5 {[%clk 00:07:11]} {[%emt 00:00:01]} 27. Qxa6
{[%clk 00:00:17]} {[%emt 00:00:14]} Rxc1+ {[%clk 00:07:09]} {[%emt 00:00:05]}
28. Rxc1 {[%clk 00:00:21]} {[%emt 00:00:02]} Nc4 {[%clk 00:07:01]} {[%emt
00:00:13]} 29. Nf3 {[%clk 00:00:06]} {[%emt 00:00:20]} f4 {[%clk 00:06:41]}
{[%emt 00:00:24]} 30. g4 {[%clk 00:00:09]} {[%emt 00:00:03]} e5 {[%clk
00:06:39]} {[%emt 00:00:07]} 31. Rc2 {[%clk 00:00:06]} {[%emt 00:00:10]} Qxg4+
{[%clk 00:06:39]} {[%emt 00:00:03]} 32. Kf1 {[%clk 00:00:09]} {[%emt 00:00:02]}
Qxf3 {[%clk 00:06:39]} {[%emt 00:00:05]} 33. Ke1 {[%clk 00:15:05]} 0-1

[Event "The Kvibergspelen 2023"]
[Site "Kviberg Park Hotel & Conference, Krutvagen 2, Gothenburg, Sweden"]
[Date "2023.09.15"]
[Round "1.4"]
[White "Seo, Jung Min"]
[Black "Johansson, Lennart B"]
[Result "1-0"]
[TimeControl "15 minutes + 5 seconds per move from move one (Round 1 - 4) / 90 minutes + 30 seconds per move from move one (Round 5 - 8)"]
[WhiteTitle "IM"]
[WhiteFideId "1734687"]
[BlackFideId "1721020"]
[WhiteElo "2462"]
[BlackElo "1846"]

1. d4 {[%clk 00:15:09]} Nf6 {[%clk 00:15:01]} {[%emt 00:00:10]} 2. c4 {[%clk
00:15:12]} {[%emt 00:00:01]} e5 {[%clk 00:15:04]} {[%emt 00:00:02]} 3. dxe5
{[%clk 00:15:16]} {[%emt 00:00:02]} Ne4 {[%clk 00:15:08]} {[%emt 00:00:01]} 4.
Nf3 {[%clk 00:15:02]} {[%emt 00:00:19]} b6 {[%clk 00:15:04]} {[%emt 00:00:09]}
5. Nbd2 {[%clk 00:14:53]} {[%emt 00:00:13]} Bb7 {[%clk 00:14:29]} {[%emt
00:00:41]} 6. Qc2 {[%clk 00:14:45]} {[%emt 00:00:12]} Bb4 {[%clk 00:14:17]}
{[%emt 00:00:18]} 7. a3 {[%clk 00:14:34]} {[%emt 00:00:17]} Nxd2 {[%clk
00:13:32]} {[%emt 00:00:49]} 8. Nxd2 {[%clk 00:14:15]} {[%emt 00:00:24]} Bc5
{[%clk 00:13:14]} {[%emt 00:00:23]} 9. Nb3 {[%clk 00:14:14]} {[%emt 00:00:06]}
Na6 {[%clk 00:12:48]} {[%emt 00:00:31]} 10. Nxc5 {[%clk 00:14:13]} {[%emt
00:00:07]} Nxc5 {[%clk 00:12:51]} {[%emt 00:00:02]} 11. b4 {[%clk 00:14:15]}
{[%emt 00:00:02]} Ne6 {[%clk 00:12:00]} {[%emt 00:00:57]} 12. e3 {[%clk
00:13:40]} {[%emt 00:00:39]} f6 {[%clk 00:11:08]} {[%emt 00:00:57]} 13. exf6
{[%clk 00:13:35]} {[%emt 00:00:11]} Qxf6 {[%clk 00:11:10]} {[%emt 00:00:02]} 14.
Bb2 {[%clk 00:13:39]} {[%emt 00:00:01]} Qg5 {[%clk 00:10:23]} {[%emt 00:00:52]}
15. f4 {[%clk 00:13:32]} {[%emt 00:00:13]} Qh4+ {[%clk 00:10:16]} {[%emt
00:00:11]} 16. Qf2 {[%clk 00:13:35]} {[%emt 00:00:02]} Qe7 {[%clk 00:10:19]} 17.
Bd3 {[%clk 00:13:28]} {[%emt 00:00:13]} O-O-O {[%clk 00:10:20]} {[%emt
00:00:04]} 18. O-O {[%clk 00:13:22]} {[%emt 00:00:11]} Rdf8 {[%clk 00:10:01]}
{[%emt 00:00:24]} 19. Qc2 {[%clk 00:12:34]} {[%emt 00:00:52]} h5 {[%clk
00:06:30]} {[%emt 00:03:36]} 20. Be4 {[%clk 00:12:28]} {[%emt 00:00:10]} h4
{[%clk 00:05:58]} {[%emt 00:00:40]} 21. Bxb7+ {[%clk 00:12:31]} {[%emt
00:00:01]} Kxb7 {[%clk 00:06:02]} {[%emt 00:00:02]} 22. Qe4+ {[%clk 00:12:33]}
{[%emt 00:00:02]} Kb8 {[%clk 00:05:59]} {[%emt 00:00:08]} 23. f5 {[%clk
00:12:35]} {[%emt 00:00:02]} h3 {[%clk 00:04:58]} {[%emt 00:01:06]} 24. g3
{[%clk 00:11:26]} {[%emt 00:01:14]} Qd6 {[%clk 00:03:46]} {[%emt 00:01:18]} 25.
fxe6 {[%clk 00:11:24]} {[%emt 00:00:07]} Qd2 {[%clk 00:03:49]} {[%emt
00:00:01]} 26. e7 {[%clk 00:10:40]} {[%emt 00:00:50]} Re8 {[%clk 00:03:28]}
{[%emt 00:00:26]} 27. Rf2 {[%clk 00:10:09]} {[%emt 00:00:36]} Qd6 {[%clk
00:03:30]} {[%emt 00:00:03]} 28. Bxg7 {[%clk 00:09:55]} {[%emt 00:00:19]} Rxe7
{[%clk 00:03:27]} {[%emt 00:00:07]} 29. Qd4 {[%clk 00:09:49]} {[%emt 00:00:11]}
Qxd4 {[%clk 00:02:53]} {[%emt 00:00:39]} 30. Bxd4 {[%clk 00:09:51]} {[%emt
00:00:04]} Rhe8 {[%clk 00:02:35]} {[%emt 00:00:22]} 31. c5 {[%clk 00:09:53]}
{[%emt 00:00:04]} d6 {[%clk 00:02:30]} {[%emt 00:00:11]} 32. c6 {[%clk
00:09:48]} {[%emt 00:00:10]} 1-0

[Event "The Kvibergspelen 2023"]
[Site "Kviberg Park Hotel & Conference, Krutvagen 2, Gothenburg, Sweden"]
[Date "2023.09.15"]
[Round "1.5"]
[White "Degerfeldt, Sven"]
[Black "Sivuk, Vitaly"]
[Result "0-1"]
[TimeControl "15 minutes + 5 seconds per move from move one (Round 1 - 4) / 90 minutes + 30 seconds per move from move one (Round 5 - 8)"]
[BlackTitle "GM"]
[WhiteFideId "1717430"]
[BlackFideId "14116502"]
[WhiteElo "1839"]
[BlackElo "2461"]

1. d4 {[%clk 00:15:07]} {[%emt 00:00:02]} Nf6 {[%clk 00:15:08]} {[%emt
00:00:04]} 2. Nf3 {[%clk 00:15:10]} {[%emt 00:00:02]} g6 {[%clk 00:15:10]}
{[%emt 00:00:02]} 3. g3 {[%clk 00:15:13]} {[%emt 00:00:02]} b6 {[%clk
00:15:08]} {[%emt 00:00:07]} 4. Bg2 {[%clk 00:15:16]} {[%emt 00:00:01]} Bb7
{[%clk 00:15:12]} {[%emt 00:00:01]} 5. O-O {[%clk 00:15:19]} {[%emt 00:00:02]}
c5 {[%clk 00:15:10]} {[%emt 00:00:06]} 6. c3 {[%clk 00:14:19]} {[%emt
00:01:05]} Bg7 {[%clk 00:15:09]} {[%emt 00:00:06]} 7. Nbd2 {[%clk 00:12:47]}
{[%emt 00:01:38]} O-O {[%clk 00:15:06]} {[%emt 00:00:08]} 8. b3 {[%clk
00:12:36]} {[%emt 00:00:16]} d5 {[%clk 00:14:08]} {[%emt 00:01:02]} 9. Ne5
{[%clk 00:12:11]} {[%emt 00:00:30]} Nc6 {[%clk 00:13:57]} {[%emt 00:00:16]} 10.
Ndf3 {[%clk 00:12:09]} {[%emt 00:00:07]} Ne4 {[%clk 00:13:53]} {[%emt
00:00:09]} 11. Nxc6 {[%clk 00:11:36]} {[%emt 00:00:39]} Bxc6 {[%clk 00:13:55]}
{[%emt 00:00:02]} 12. Bb2 {[%clk 00:11:28]} {[%emt 00:00:14]} Rc8 {[%clk
00:13:54]} {[%emt 00:00:05]} 13. Rc1 {[%clk 00:10:53]} {[%emt 00:00:41]} Bb7
{[%clk 00:13:27]} {[%emt 00:00:31]} 14. e3 {[%clk 00:09:28]} {[%emt 00:01:31]}
Ba6 {[%clk 00:12:54]} {[%emt 00:00:38]} 15. Re1 {[%clk 00:09:31]} {[%emt
00:00:02]} c4 {[%clk 00:12:56]} {[%emt 00:00:03]} 16. Nd2 {[%clk 00:09:03]}
{[%emt 00:00:32]} Nxd2 {[%clk 00:12:16]} {[%emt 00:00:45]} 17. Qxd2 {[%clk
00:09:06]} {[%emt 00:00:02]} Bh6 {[%clk 00:12:10]} {[%emt 00:00:11]} 18. b4
{[%clk 00:09:04]} {[%emt 00:00:08]} Bb5 {[%clk 00:12:07]} {[%emt 00:00:07]} 19.
f3 {[%clk 00:08:47]} {[%emt 00:00:21]} Ra8 {[%clk 00:11:34]} {[%emt 00:00:39]}
20. Qc2 {[%clk 00:08:08]} {[%emt 00:00:44]} Qd7 {[%clk 00:11:34]} {[%emt
00:00:05]} 21. Qe2 {[%clk 00:07:41]} {[%emt 00:00:32]} a5 {[%clk 00:11:32]}
{[%emt 00:00:08]} 22. Ba3 {[%clk 00:07:33]} {[%emt 00:00:13]} Rfe8 {[%clk
00:11:01]} {[%emt 00:00:36]} 23. Rb1 {[%clk 00:07:06]} {[%emt 00:00:33]} e6
{[%clk 00:10:13]} {[%emt 00:00:53]} 24. bxa5 {[%clk 00:06:49]} {[%emt
00:00:21]} Rxa5 {[%clk 00:10:15]} {[%emt 00:00:03]} 25. Bb4 {[%clk 00:06:53]}
{[%emt 00:00:02]} Ra6 {[%clk 00:10:15]} {[%emt 00:00:05]} 26. a3 {[%clk
00:06:57]} Rea8 {[%clk 00:10:11]} {[%emt 00:00:08]} 27. e4 {[%clk 00:06:48]}
{[%emt 00:00:14]} Bc6 {[%clk 00:10:03]} {[%emt 00:00:13]} 28. f4 {[%clk
00:06:29]} {[%emt 00:00:24]} Bf8 {[%clk 00:09:51]} {[%emt 00:00:17]} 29. exd5
{[%clk 00:06:08]} {[%emt 00:00:27]} Bxd5 {[%clk 00:09:45]} {[%emt 00:00:10]} 30.
Bxd5 {[%clk 00:06:03]} {[%emt 00:00:10]} Qxd5 {[%clk 00:09:45]} {[%emt
00:00:05]} 31. Qg2 {[%clk 00:05:45]} {[%emt 00:00:22]} Qxg2+ {[%clk 00:08:54]}
{[%emt 00:00:57]} 32. Kxg2 {[%clk 00:05:49]} Bxb4 {[%clk 00:08:58]} {[%emt
00:00:02]} 33. axb4 {[%clk 00:05:52]} {[%emt 00:00:02]} Ra2+ {[%clk 00:09:01]}
{[%emt 00:00:01]} 34. Kh3 {[%clk 00:05:55]} {[%emt 00:00:02]} Rc2 {[%clk
00:09:02]} {[%emt 00:00:03]} 35. Rbc1 {[%clk 00:05:53]} {[%emt 00:00:08]} Rca2
{[%clk 00:08:45]} {[%emt 00:00:22]} 36. Re3 {[%clk 00:05:46]} {[%emt 00:00:12]}
Rb2 {[%clk 00:08:42]} {[%emt 00:00:07]} 37. Re5 {[%clk 00:04:03]} {[%emt
00:01:49]} h5 {[%clk 00:08:33]} {[%emt 00:00:13]} 38. d5 {[%clk 00:03:58]}
{[%emt 00:00:11]} Raa2 {[%clk 00:08:34]} {[%emt 00:00:04]} 39. Rh1 {[%clk
00:03:58]} {[%emt 00:00:05]} exd5 {[%clk 00:08:11]} {[%emt 00:00:28]} 40. Rxd5
{[%clk 00:03:59]} {[%emt 00:00:04]} Rc2 {[%clk 00:07:53]} {[%emt 00:00:23]} 41.
Rb5 {[%clk 00:03:31]} {[%emt 00:00:34]} Ra6 {[%clk 00:07:55]} {[%emt 00:00:03]}
42. f5 {[%clk 00:03:07]} {[%emt 00:00:28]} Rxc3 {[%clk 00:07:36]} {[%emt
00:00:24]} 43. fxg6 {[%clk 00:03:02]} {[%emt 00:00:10]} fxg6 {[%clk 00:07:40]}
{[%emt 00:00:02]} 44. Rd1 {[%clk 00:02:55]} {[%emt 00:00:11]} Kg7 {[%clk
00:07:35]} {[%emt 00:00:11]} 45. Rbd5 {[%clk 00:02:31]} {[%emt 00:00:28]} Ra2
{[%clk 00:07:20]} {[%emt 00:00:20]} 46. Rd7+ {[%clk 00:02:21]} {[%emt
00:00:15]} Kh6 {[%clk 00:07:23]} {[%emt 00:00:02]} 47. R7d6 {[%clk 00:01:59]}
{[%emt 00:00:28]} Rcc2 {[%clk 00:07:21]} {[%emt 00:00:06]} 48. Rh1 {[%clk
00:02:02]} {[%emt 00:00:02]} b5 {[%clk 00:07:08]} {[%emt 00:00:18]} 49. g4
{[%clk 00:01:50]} {[%emt 00:00:17]} hxg4+ {[%clk 00:07:01]} {[%emt 00:00:12]}
50. Kxg4 {[%clk 00:01:53]} {[%emt 00:00:02]} Rxh2 {[%clk 00:06:50]} {[%emt
00:00:16]} 51. Re1 {[%clk 00:01:40]} {[%emt 00:00:17]} Rab2 {[%clk 00:06:21]}
{[%emt 00:00:35]} 52. Ree6 {[%clk 00:01:37]} {[%emt 00:00:08]} Rhg2+ {[%clk
00:06:23]} {[%emt 00:00:03]} 53. Kf3 {[%clk 00:01:41]} {[%emt 00:00:02]} Rg5
{[%clk 00:06:24]} {[%emt 00:00:02]} 54. Rd8 {[%clk 00:01:18]} {[%emt 00:00:30]}
Rxb4 {[%clk 00:05:54]} {[%emt 00:00:34]} 55. Rh8+ {[%clk 00:01:17]} {[%emt
00:00:06]} Kg7 {[%clk 00:05:58]} {[%emt 00:00:01]} 56. Ree8 {[%clk 00:01:21]}
{[%emt 00:00:01]} Rf5+ {[%clk 00:05:56]} {[%emt 00:00:07]} 57. Ke3 {[%clk
00:01:21]} {[%emt 00:00:05]} c3 {[%clk 00:05:52]} {[%emt 00:00:09]} 58. Reg8+
{[%clk 00:01:07]} {[%emt 00:00:19]} Kf6 {[%clk 00:05:55]} {[%emt 00:00:01]} 59.
Rf8+ {[%clk 00:01:04]} {[%emt 00:00:09]} Kg5 {[%clk 00:05:58]} {[%emt
00:00:02]} 60. Rxf5+ {[%clk 00:01:00]} {[%emt 00:00:09]} Kxf5 {[%clk 00:05:55]}
{[%emt 00:00:08]} 61. Rc8 {[%clk 00:01:01]} {[%emt 00:00:04]} Rc4 {[%clk
00:05:58]} {[%emt 00:00:02]} 62. Kd4 {[%clk 00:00:49]} {[%emt 00:00:12]} Ke5+
{[%clk 00:05:58]} 0-1